[Event "Late-Titled-Tuesday-Blitz-March-19-2024"]
[Site "Chess.com"]
[Date "2024.03.19"]
[Round "3"]
[White "LikeWater"]
[Black "Kavyev_Ruslan"]
[Result "1-0"]
[WhiteElo "2654"]
[BlackElo "2463"]
[TimeControl "180+1"]
[EndTime "14:26:24 PDT"]
[Termination "LikeWater won by resignation"]

1. e4 {[%clk 0:02:59.5]} 1... c6 {[%clk 0:02:58.9]} 2. d4 {[%clk 0:02:59.4]}
2... d5 {[%clk 0:02:59.5]} 3. e5 {[%clk 0:03:00.3]} 3... Bf5 {[%clk 0:02:58.6]}
4. h4 {[%clk 0:03:00.1]} 4... h5 {[%clk 0:02:58.5]} 5. Bd3 {[%clk 0:02:59.8]}
5... Bxd3 {[%clk 0:02:57.6]} 6. Qxd3 {[%clk 0:03:00.7]} 6... e6 {[%clk
0:02:57.4]} 7. Bg5 {[%clk 0:03:00.5]} 7... Be7 {[%clk 0:02:57]} 8. Nf3 {[%clk
0:02:59.5]} 8... Nh6 {[%clk 0:02:56.5]} 9. Nbd2 {[%clk 0:02:58.1]} 9... Nf5
{[%clk 0:02:56.3]} 10. c4 {[%clk 0:02:56.7]} 10... Nd7 {[%clk 0:02:45.3]} 11.
O-O-O {[%clk 0:02:56.5]} 11... dxc4 {[%clk 0:02:44.7]} 12. Nxc4 {[%clk
0:02:56.4]} 12... Nb6 {[%clk 0:02:45.1]} 13. Ne3 {[%clk 0:02:52.9]} 13... Nxe3
{[%clk 0:02:39.2]} 14. fxe3 {[%clk 0:02:53.8]} 14... Qd5 {[%clk 0:02:32.9]} 15.
Kb1 {[%clk 0:02:52.8]} 15... a5 {[%clk 0:02:25.1]} 16. Bxe7 {[%clk 0:02:52.2]}
16... Kxe7 {[%clk 0:02:24.8]} 17. Ng5 {[%clk 0:02:52.6]} 17... f6 {[%clk
0:02:04.2]} 18. Qg6 {[%clk 0:02:45.8]} 18... Raf8 {[%clk 0:01:19.5]} 19. Qxg7+
{[%clk 0:02:42]} 19... Kd8 {[%clk 0:01:20.1]} 20. Nf7+ {[%clk 0:02:33.6]} 20...
Rxf7 {[%clk 0:01:19]} 21. Qxf7 {[%clk 0:02:34.1]} 21... Qe4+ {[%clk 0:01:11.1]}
22. Ka1 {[%clk 0:02:33.9]} 22... Nd5 {[%clk 0:01:11.8]} 23. Qxe6 {[%clk
0:02:24.1]} 23... Nxe3 {[%clk 0:00:59.7]} 24. Rc1 {[%clk 0:02:19.9]} 24... Re8
{[%clk 0:00:23.3]} 25. Qd6+ {[%clk 0:02:10.9]} 25... Kc8 {[%clk 0:00:23.1]} 26.
exf6 {[%clk 0:02:11.8]} 26... Qxg2 {[%clk 0:00:20.2]} 27. f7 {[%clk 0:02:08.4]}
27... Nc2+ {[%clk 0:00:17]} 28. Kb1 {[%clk 0:02:08.5]} 28... Na3+ {[%clk
0:00:12.6]} 29. bxa3 {[%clk 0:02:07.4]} 29... Qe4+ {[%clk 0:00:10.3]} 30. Ka1
{[%clk 0:02:07.5]} 30... Rd8 {[%clk 0:00:10.4]} 31. f8=Q {[%clk 0:02:07.6]}
31... Rxf8 {[%clk 0:00:09.8]} 32. Qxf8+ {[%clk 0:02:08.5]} 32... Kc7 {[%clk
0:00:10.7]} 33. Qc5 {[%clk 0:02:07.7]} 33... Qe3 {[%clk 0:00:09.3]} 34. Qe5+
{[%clk 0:02:07.4]} 1-0

[Event "Late-Titled-Tuesday-Blitz-March-19-2024"]
[Site "Chess.com"]
[Date "2024.03.19"]
[Round "3"]
[White "Savagelittlemole"]
[Black "Thjop"]
[Result "0-1"]
[WhiteElo "2473"]
[BlackElo "2655"]
[TimeControl "180+1"]
[EndTime "14:26:27 PDT"]
[Termination "Thjop won by resignation"]

1. e4 {[%clk 0:03:00.9]} 1... e6 {[%clk 0:03:00]} 2. d4 {[%clk 0:03:00.5]} 2...
d5 {[%clk 0:03:00.3]} 3. exd5 {[%clk 0:03:00.3]} 3... exd5 {[%clk 0:03:01.2]} 4.
Bd3 {[%clk 0:03:00.4]} 4... Nc6 {[%clk 0:03:01.4]} 5. Ne2 {[%clk 0:02:59.2]}
5... Bd6 {[%clk 0:02:58.7]} 6. Nd2 {[%clk 0:02:56.3]} 6... Qf6 {[%clk
0:02:58.4]} 7. c3 {[%clk 0:02:45.3]} 7... Nge7 {[%clk 0:02:57.9]} 8. h3 {[%clk
0:02:45.4]} 8... Bf5 {[%clk 0:02:57.2]} 9. Nf3 {[%clk 0:02:44.6]} 9... Bxd3
{[%clk 0:02:53.1]} 10. Qxd3 {[%clk 0:02:45.5]} 10... O-O-O {[%clk 0:02:52.7]}
11. Bg5 {[%clk 0:02:43.5]} 11... Qg6 {[%clk 0:02:39.4]} 12. Qxg6 {[%clk
0:02:40.7]} 12... hxg6 {[%clk 0:02:40.3]} 13. O-O {[%clk 0:02:30.5]} 13... f6
{[%clk 0:02:39.5]} 14. Bf4 {[%clk 0:02:30.1]} 14... g5 {[%clk 0:02:37.7]} 15.
Bxd6 {[%clk 0:02:30.1]} 15... Rxd6 {[%clk 0:02:36]} 16. Ng3 {[%clk 0:02:29.8]}
16... g6 {[%clk 0:02:18.3]} 17. Rfe1 {[%clk 0:02:25.6]} 17... Kd7 {[%clk
0:02:14.7]} 18. Re2 {[%clk 0:02:22.3]} 18... Re6 {[%clk 0:02:14.7]} 19. Rae1
{[%clk 0:02:20.1]} 19... Rxe2 {[%clk 0:02:14.8]} 20. Rxe2 {[%clk 0:02:21]} 20...
Nc8 {[%clk 0:02:08.9]} 21. Nf1 {[%clk 0:02:17]} 21... Nd6 {[%clk 0:02:08.9]} 22.
Ne3 {[%clk 0:02:14.4]} 22... Ne7 {[%clk 0:02:06.1]} 23. Ng4 {[%clk 0:02:14.4]}
23... Rf8 {[%clk 0:02:03.3]} 24. b3 {[%clk 0:02:05.4]} 24... c6 {[%clk
0:01:59.2]} 25. c4 {[%clk 0:02:04.5]} 25... dxc4 {[%clk 0:01:52.4]} 26. bxc4
{[%clk 0:02:05.4]} 26... Nxc4 {[%clk 0:01:50.3]} 27. Rc2 {[%clk 0:01:48.8]}
27... b5 {[%clk 0:01:49]} 28. Nd2 {[%clk 0:01:39.2]} 28... Nxd2 {[%clk
0:01:47.3]} 29. Rxd2 {[%clk 0:01:40.1]} 29... Nd5 {[%clk 0:01:47]} 30. g3 {[%clk
0:01:32]} 30... a5 {[%clk 0:01:45.9]} 31. Ne3 {[%clk 0:01:27.6]} 31... b4 {[%clk
0:01:34.6]} 32. Nxd5 {[%clk 0:01:09.3]} 32... cxd5 {[%clk 0:01:35.5]} 33. f4
{[%clk 0:01:09.6]} 33... gxf4 {[%clk 0:01:33.9]} 34. gxf4 {[%clk 0:01:10.5]}
34... a4 {[%clk 0:01:30.5]} 35. Rb2 {[%clk 0:01:08.4]} 35... Rb8 {[%clk
0:01:29.8]} 36. Kg2 {[%clk 0:01:04]} 36... b3 {[%clk 0:01:29.5]} 37. axb3 {[%clk
0:00:53.9]} 37... Rxb3 {[%clk 0:01:30]} 38. Ra2 {[%clk 0:00:49.5]} 38... a3
{[%clk 0:01:30.3]} 39. f5 {[%clk 0:00:48.6]} 39... Rb2+ {[%clk 0:01:25.9]} 0-1

[Event "Late-Titled-Tuesday-Blitz-March-19-2024"]
[Site "Chess.com"]
[Date "2024.03.19"]
[Round "3"]
[White "Dr_Pepper18"]
[Black "Jamal-Jamal-Jamal"]
[Result "1-0"]
[WhiteElo "2455"]
[BlackElo "2256"]
[TimeControl "180+1"]
[EndTime "14:26:37 PDT"]
[Termination "Dr_Pepper18 won on time"]

1. d4 {[%clk 0:03:00.9]} 1... f5 {[%clk 0:02:59.1]} 2. Nc3 {[%clk 0:02:58.8]}
2... d5 {[%clk 0:02:47.6]} 3. Bg5 {[%clk 0:02:50.8]} 3... Nf6 {[%clk 0:02:42.3]}
4. Bxf6 {[%clk 0:02:50.6]} 4... exf6 {[%clk 0:02:43.2]} 5. e3 {[%clk 0:02:51.2]}
5... Bb4 {[%clk 0:02:40.6]} 6. Ne2 {[%clk 0:02:46]} 6... O-O {[%clk 0:02:27.7]}
7. a3 {[%clk 0:02:34]} 7... Be7 {[%clk 0:02:09.8]} 8. Nf4 {[%clk 0:02:24.8]}
8... c6 {[%clk 0:02:08.5]} 9. h4 {[%clk 0:02:25.3]} 9... Bd6 {[%clk 0:02:07.1]}
10. Qf3 {[%clk 0:02:20.5]} 10... g6 {[%clk 0:01:55]} 11. Bd3 {[%clk 0:02:18.5]}
11... Qc7 {[%clk 0:01:47.1]} 12. O-O-O {[%clk 0:02:17]} 12... Bxf4 {[%clk
0:01:43.3]} 13. exf4 {[%clk 0:02:15.2]} 13... Be6 {[%clk 0:01:31.5]} 14. h5
{[%clk 0:02:14.9]} 14... g5 {[%clk 0:01:26.9]} 15. fxg5 {[%clk 0:02:10.6]} 15...
fxg5 {[%clk 0:01:27.8]} 16. Rde1 {[%clk 0:02:11.1]} 16... Qf7 {[%clk 0:01:15]}
17. Qe3 {[%clk 0:02:07.9]} 17... Re8 {[%clk 0:00:59.2]} 18. Qxg5+ {[%clk
0:02:07.8]} 18... Kh8 {[%clk 0:00:59.3]} 19. Re2 {[%clk 0:01:56.3]} 19... Rg8
{[%clk 0:00:55.6]} 20. Qe3 {[%clk 0:01:52.7]} 20... Bd7 {[%clk 0:00:48.7]} 21.
h6 {[%clk 0:01:52.9]} 21... Qf6 {[%clk 0:00:47]} 22. g4 {[%clk 0:01:28.5]} 22...
fxg4 {[%clk 0:00:38.7]} 23. Qe7 {[%clk 0:01:28.5]} 23... Qf4+ {[%clk 0:00:08.2]}
24. Kb1 {[%clk 0:01:27.6]} 1-0

[Event "Late-Titled-Tuesday-Blitz-March-19-2024"]
[Site "Chess.com"]
[Date "2024.03.19"]
[Round "3"]
[White "Beca95"]
[Black "bazar-wokzal"]
[Result "1-0"]
[WhiteElo "2956"]
[BlackElo "2567"]
[TimeControl "180+1"]
[EndTime "14:26:39 PDT"]
[Termination "Beca95 won by resignation"]

1. d4 {[%clk 0:02:59.1]} 1... Nf6 {[%clk 0:02:59.7]} 2. c4 {[%clk 0:02:59.4]}
2... Nc6 {[%clk 0:02:59.6]} 3. Nf3 {[%clk 0:02:58.5]} 3... e6 {[%clk 0:02:59.6]}
4. a3 {[%clk 0:02:58.5]} 4... g6 {[%clk 0:02:58.7]} 5. Nc3 {[%clk 0:02:58.5]}
5... Bg7 {[%clk 0:02:58.8]} 6. h3 {[%clk 0:02:58.8]} 6... O-O {[%clk 0:02:58.5]}
7. Bf4 {[%clk 0:02:58.3]} 7... d5 {[%clk 0:02:45.9]} 8. e3 {[%clk 0:02:57.9]}
8... b6 {[%clk 0:02:45.8]} 9. Rc1 {[%clk 0:02:57.4]} 9... Ne7 {[%clk 0:02:45.2]}
10. Nb5 {[%clk 0:02:44.4]} 10... Ne8 {[%clk 0:02:43.6]} 11. Be2 {[%clk
0:02:44.2]} 11... dxc4 {[%clk 0:02:37.6]} 12. Bxc4 {[%clk 0:02:42.2]} 12... Bb7
{[%clk 0:02:37.3]} 13. O-O {[%clk 0:02:41.9]} 13... Nd6 {[%clk 0:02:32.9]} 14.
Bd3 {[%clk 0:02:32.8]} 14... Nd5 {[%clk 0:02:26.7]} 15. Bg3 {[%clk 0:02:28.5]}
15... Nxb5 {[%clk 0:02:21.4]} 16. Bxb5 {[%clk 0:02:28.3]} 16... Rc8 {[%clk
0:02:20.2]} 17. Bc6 {[%clk 0:02:27]} 17... Bxc6 {[%clk 0:02:14.6]} 18. Rxc6
{[%clk 0:02:27.9]} 18... Ne7 {[%clk 0:02:14.5]} 19. Rc2 {[%clk 0:02:27.7]} 19...
c5 {[%clk 0:02:05.7]} 20. dxc5 {[%clk 0:02:27.6]} 20... Rxc5 {[%clk 0:02:05.3]}
21. Rxc5 {[%clk 0:02:26.9]} 21... bxc5 {[%clk 0:02:05.3]} 22. Be5 {[%clk
0:02:25.8]} 22... Qb6 {[%clk 0:01:43]} 23. Bxg7 {[%clk 0:02:24.8]} 23... Kxg7
{[%clk 0:01:42.7]} 24. Qc2 {[%clk 0:02:24.6]} 24... Nd5 {[%clk 0:01:34.7]} 25.
Ne5 {[%clk 0:02:23]} 25... Rc8 {[%clk 0:01:25.5]} 26. e4 {[%clk 0:02:20.3]}
26... Ne7 {[%clk 0:01:12.1]} 27. Qc3 {[%clk 0:02:16.9]} 27... Kg8 {[%clk
0:01:01.3]} 28. Nd7 {[%clk 0:02:16.3]} 28... Qc6 {[%clk 0:00:53.5]} 29. Nf6+
{[%clk 0:02:15.6]} 29... Kf8 {[%clk 0:00:42.5]} 30. Nxh7+ {[%clk 0:02:14.7]}
30... Kg8 {[%clk 0:00:42.8]} 31. Nf6+ {[%clk 0:02:13.7]} 31... Kf8 {[%clk
0:00:43.3]} 32. Ng4 {[%clk 0:01:58.7]} 32... Ng8 {[%clk 0:00:33]} 33. Qh8 {[%clk
0:01:54.9]} 33... Ke7 {[%clk 0:00:31]} 34. Qh4+ {[%clk 0:01:54.4]} 34... Kf8
{[%clk 0:00:28.7]} 35. Rd1 {[%clk 0:01:52.3]} 35... Qxe4 {[%clk 0:00:20.7]} 36.
Rd8+ {[%clk 0:01:51.5]} 36... Rxd8 {[%clk 0:00:20.2]} 37. Qxd8+ {[%clk
0:01:52.1]} 37... Kg7 {[%clk 0:00:20]} 38. Qxg8+ {[%clk 0:01:52.7]} 38... Kxg8
{[%clk 0:00:20.5]} 39. Nf6+ {[%clk 0:01:52.6]} 1-0

[Event "Late-Titled-Tuesday-Blitz-March-19-2024"]
[Site "Chess.com"]
[Date "2024.03.19"]
[Round "3"]
[White "ameetghasi100"]
[Black "malakismayil"]
[Result "1-0"]
[WhiteElo "2788"]
[BlackElo "2525"]
[TimeControl "180+1"]
[EndTime "14:26:45 PDT"]
[Termination "ameetghasi100 won by resignation"]

1. c4 {[%clk 0:03:00]} 1... e5 {[%clk 0:02:59.9]} 2. e3 {[%clk 0:03:00.9]} 2...
Nf6 {[%clk 0:02:59.4]} 3. Nc3 {[%clk 0:03:01.2]} 3... Nc6 {[%clk 0:02:57.8]} 4.
Nf3 {[%clk 0:03:01.7]} 4... Be7 {[%clk 0:02:56.2]} 5. a3 {[%clk 0:03:00.9]} 5...
O-O {[%clk 0:02:56.6]} 6. Qb3 {[%clk 0:03:01.2]} 6... d6 {[%clk 0:02:56.4]} 7.
Be2 {[%clk 0:03:01.7]} 7... h6 {[%clk 0:02:56.4]} 8. d3 {[%clk 0:03:01.9]} 8...
Rb8 {[%clk 0:02:54.4]} 9. O-O {[%clk 0:03:01.7]} 9... Be6 {[%clk 0:02:54]} 10.
Qc2 {[%clk 0:03:02]} 10... d5 {[%clk 0:02:52.3]} 11. cxd5 {[%clk 0:03:02.9]}
11... Nxd5 {[%clk 0:02:52.7]} 12. Ne4 {[%clk 0:03:03.2]} 12... f5 {[%clk
0:02:49.6]} 13. Nc5 {[%clk 0:03:03]} 13... Bxc5 {[%clk 0:02:49.7]} 14. Qxc5
{[%clk 0:03:03.9]} 14... Qd6 {[%clk 0:02:50.2]} 15. Qc2 {[%clk 0:03:01.6]} 15...
Rbd8 {[%clk 0:02:38.5]} 16. b4 {[%clk 0:03:01.7]} 16... a6 {[%clk 0:02:38.2]}
17. Bb2 {[%clk 0:03:01.6]} 17... Nf6 {[%clk 0:02:20.6]} 18. Rac1 {[%clk
0:03:01.1]} 18... Bd5 {[%clk 0:02:20.4]} 19. Rfd1 {[%clk 0:03:00.1]} 19... Qe6
{[%clk 0:02:08.4]} 20. Qc3 {[%clk 0:02:56.4]} 20... Bxf3 {[%clk 0:02:00.8]} 21.
Bxf3 {[%clk 0:02:55.3]} 21... Nd5 {[%clk 0:02:01.5]} 22. Qc4 {[%clk 0:02:44.2]}
22... Rfe8 {[%clk 0:01:48.9]} 23. b5 {[%clk 0:02:33.4]} 23... axb5 {[%clk
0:01:44.5]} 24. Qxb5 {[%clk 0:02:34.3]} 24... e4 {[%clk 0:01:34.8]} 25. dxe4
{[%clk 0:02:33.5]} 25... fxe4 {[%clk 0:01:34.7]} 26. Be2 {[%clk 0:02:29.9]}
26... Nb6 {[%clk 0:01:32.7]} 27. a4 {[%clk 0:02:23.4]} 27... Na7 {[%clk
0:01:04.9]} 28. Qb4 {[%clk 0:01:53.3]} 28... Nc6 {[%clk 0:00:59.7]} 29. Qc3
{[%clk 0:01:51.4]} 29... Qf7 {[%clk 0:00:43.2]} 30. Bh5 {[%clk 0:01:41.1]} 30...
Qe7 {[%clk 0:00:37.6]} 31. a5 {[%clk 0:01:22.9]} 31... Nd7 {[%clk 0:00:28.9]}
32. Bxe8 {[%clk 0:01:22.3]} 32... Rxe8 {[%clk 0:00:27.1]} 33. a6 {[%clk
0:01:22.7]} 1-0

[Event "Late-Titled-Tuesday-Blitz-March-19-2024"]
[Site "Chess.com"]
[Date "2024.03.19"]
[Round "3"]
[White "JiiHart"]
[Black "ExchangeAB"]
[Result "0-1"]
[WhiteElo "2207"]
[BlackElo "2504"]
[TimeControl "180+1"]
[EndTime "14:26:47 PDT"]
[Termination "ExchangeAB won by resignation"]

1. e4 {[%clk 0:03:00.9]} 1... c5 {[%clk 0:03:00.4]} 2. c3 {[%clk 0:03:00.5]}
2... Nf6 {[%clk 0:02:55.2]} 3. e5 {[%clk 0:03:00.4]} 3... Nd5 {[%clk 0:02:54.9]}
4. d4 {[%clk 0:03:00.7]} 4... e6 {[%clk 0:02:47.7]} 5. Nf3 {[%clk 0:03:00]} 5...
Nc6 {[%clk 0:02:46.2]} 6. Bd3 {[%clk 0:02:50.9]} 6... cxd4 {[%clk 0:02:46.1]} 7.
cxd4 {[%clk 0:02:51]} 7... d6 {[%clk 0:02:43.1]} 8. Nc3 {[%clk 0:02:48.7]} 8...
dxe5 {[%clk 0:02:38.6]} 9. dxe5 {[%clk 0:02:48.9]} 9... Bb4 {[%clk 0:02:37.7]}
10. Bd2 {[%clk 0:02:40.4]} 10... Nxc3 {[%clk 0:02:37.1]} 11. Bxc3 {[%clk
0:02:40.7]} 11... Bxc3+ {[%clk 0:02:37]} 12. bxc3 {[%clk 0:02:41.2]} 12... Qc7
{[%clk 0:02:34.3]} 13. Qe2 {[%clk 0:02:38.8]} 13... b6 {[%clk 0:02:29.2]} 14.
O-O {[%clk 0:02:23.5]} 14... Bb7 {[%clk 0:02:28.5]} 15. Rfe1 {[%clk 0:02:20.1]}
15... Rd8 {[%clk 0:02:26.9]} 16. Bb5 {[%clk 0:02:14]} 16... O-O {[%clk
0:02:21.1]} 17. h3 {[%clk 0:02:12.3]} 17... Na5 {[%clk 0:02:17.8]} 18. Rac1
{[%clk 0:01:56.3]} 18... Bxf3 {[%clk 0:02:16.9]} 19. Qxf3 {[%clk 0:01:51.3]}
19... Rd5 {[%clk 0:02:16.3]} 20. Qe2 {[%clk 0:01:31.5]} 20... Rfd8 {[%clk
0:02:15.7]} 21. Red1 {[%clk 0:00:53]} 21... g6 {[%clk 0:02:07.7]} 22. Rxd5
{[%clk 0:00:49]} 22... Rxd5 {[%clk 0:02:08.6]} 23. Re1 {[%clk 0:00:32.2]} 23...
Qxc3 {[%clk 0:02:04.5]} 24. Ba4 {[%clk 0:00:23.2]} 24... Nc4 {[%clk 0:01:52.2]}
25. Bb3 {[%clk 0:00:18.9]} 25... Rxe5 {[%clk 0:01:48.7]} 26. Bxc4 {[%clk
0:00:13.6]} 26... Qxe1+ {[%clk 0:01:46.7]} 27. Qxe1 {[%clk 0:00:11.8]} 27...
Rxe1+ {[%clk 0:01:47.6]} 28. Kh2 {[%clk 0:00:12.4]} 28... Rc1 {[%clk 0:01:45.6]}
29. Bb3 {[%clk 0:00:12]} 29... Kg7 {[%clk 0:01:44.2]} 30. Kg3 {[%clk 0:00:12.2]}
30... e5 {[%clk 0:01:44.6]} 31. Kf3 {[%clk 0:00:12.5]} 31... f5 {[%clk
0:01:44.9]} 32. Ke2 {[%clk 0:00:12.6]} 32... Kf6 {[%clk 0:01:45.1]} 33. g3
{[%clk 0:00:11.9]} 33... Rc7 {[%clk 0:01:46]} 34. Ke3 {[%clk 0:00:11.2]} 34...
b5 {[%clk 0:01:45.2]} 35. Kd3 {[%clk 0:00:11.3]} 35... b4 {[%clk 0:01:45.6]} 36.
Bc4 {[%clk 0:00:10.2]} 36... a5 {[%clk 0:01:45.7]} 37. Bb3 {[%clk 0:00:10.4]}
37... h6 {[%clk 0:01:44.3]} 38. f3 {[%clk 0:00:10.4]} 38... g5 {[%clk
0:01:44.6]} 0-1

[Event "Late-Titled-Tuesday-Blitz-March-19-2024"]
[Site "Chess.com"]
[Date "2024.03.19"]
[Round "3"]
[White "Bugcrusher"]
[Black "AlexTruskavetsky"]
[Result "0-1"]
[WhiteElo "2480"]
[BlackElo "2657"]
[TimeControl "180+1"]
[EndTime "14:26:54 PDT"]
[Termination "AlexTruskavetsky won by resignation"]

1. e4 {[%clk 0:02:52.7]} 1... c5 {[%clk 0:02:59.3]} 2. Nc3 {[%clk 0:02:50.4]}
2... Nc6 {[%clk 0:02:59.3]} 3. Bb5 {[%clk 0:02:48.8]} 3... g6 {[%clk 0:02:58.2]}
4. Bxc6 {[%clk 0:02:47.7]} 4... dxc6 {[%clk 0:02:59.1]} 5. d3 {[%clk 0:02:47.8]}
5... Bg7 {[%clk 0:02:59.6]} 6. f4 {[%clk 0:02:42.2]} 6... c4 {[%clk 0:02:29.7]}
7. Nf3 {[%clk 0:02:33.2]} 7... cxd3 {[%clk 0:02:29.3]} 8. cxd3 {[%clk 0:02:33]}
8... Nf6 {[%clk 0:02:29.1]} 9. O-O {[%clk 0:02:29.7]} 9... O-O {[%clk 0:02:29]}
10. Be3 {[%clk 0:02:26.3]} 10... Ng4 {[%clk 0:02:28.4]} 11. Qe2 {[%clk
0:02:25.8]} 11... Nxe3 {[%clk 0:02:27.3]} 12. Qxe3 {[%clk 0:02:26]} 12... b6
{[%clk 0:02:27.9]} 13. Rad1 {[%clk 0:01:45.2]} 13... Qc7 {[%clk 0:02:23.8]} 14.
d4 {[%clk 0:01:43.7]} 14... Rd8 {[%clk 0:02:23.8]} 15. e5 {[%clk 0:01:39]} 15...
Ba6 {[%clk 0:02:19.4]} 16. Rfe1 {[%clk 0:01:38.3]} 16... Rac8 {[%clk 0:01:57.2]}
17. d5 {[%clk 0:01:31.6]} 17... cxd5 {[%clk 0:01:55.7]} 18. Nxd5 {[%clk
0:01:31.5]} 18... Qb7 {[%clk 0:01:55.6]} 19. Nc3 {[%clk 0:01:24.1]} 19... Bf8
{[%clk 0:01:45.2]} 20. e6 {[%clk 0:01:15]} 20... f6 {[%clk 0:01:42.8]} 21. f5
{[%clk 0:01:12.7]} 21... g5 {[%clk 0:01:34.6]} 22. Ne4 {[%clk 0:01:01.7]} 22...
h6 {[%clk 0:01:32.1]} 23. Nxf6+ {[%clk 0:00:51.2]} 23... exf6 {[%clk 0:01:31.6]}
24. Rxd8 {[%clk 0:00:51.7]} 24... Rxd8 {[%clk 0:01:31.5]} 25. e7 {[%clk
0:00:52.3]} 25... Bxe7 {[%clk 0:01:26.9]} 26. Qxe7 {[%clk 0:00:52.2]} 26... Qxe7
{[%clk 0:01:26.9]} 27. Rxe7 {[%clk 0:00:51.7]} 27... Rd1+ {[%clk 0:01:27.8]} 28.
Kf2 {[%clk 0:00:50.6]} 28... Rb1 {[%clk 0:01:27.7]} 29. Rxa7 {[%clk 0:00:47.9]}
29... Rxb2+ {[%clk 0:01:27.2]} 30. Ke3 {[%clk 0:00:46.2]} 30... Rxa2 {[%clk
0:01:27.3]} 31. Nd4 {[%clk 0:00:42.9]} 31... Bc4 {[%clk 0:01:26.6]} 32. Rb7
{[%clk 0:00:37.4]} 32... b5 {[%clk 0:01:22.3]} 33. Ne6 {[%clk 0:00:33.3]} 33...
Re2+ {[%clk 0:01:22]} 34. Kf3 {[%clk 0:00:31]} 34... Bd5+ {[%clk 0:01:20.4]} 35.
Kxe2 {[%clk 0:00:30.2]} 35... Bxb7 {[%clk 0:01:20.8]} 36. g3 {[%clk 0:00:27.5]}
36... Bd5 {[%clk 0:01:20.5]} 37. Nd4 {[%clk 0:00:27.1]} 37... Kf7 {[%clk
0:01:19.8]} 38. Nxb5 {[%clk 0:00:26.8]} 38... Bc4+ {[%clk 0:01:20]} 0-1

[Event "Late-Titled-Tuesday-Blitz-March-19-2024"]
[Site "Chess.com"]
[Date "2024.03.19"]
[Round "3"]
[White "CheckThis4"]
[Black "Joachim100x"]
[Result "0-1"]
[WhiteElo "2668"]
[BlackElo "2513"]
[TimeControl "180+1"]
[EndTime "14:26:59 PDT"]
[Termination "Joachim100x won by checkmate"]

1. e4 {[%clk 0:03:00.9]} 1... c5 {[%clk 0:02:59.8]} 2. Nf3 {[%clk 0:03:00.2]}
2... e6 {[%clk 0:03:00.2]} 3. d4 {[%clk 0:02:59.4]} 3... cxd4 {[%clk 0:03:00.6]}
4. Nxd4 {[%clk 0:03:00.3]} 4... Bc5 {[%clk 0:03:00.8]} 5. Nb3 {[%clk 0:02:58.9]}
5... Bb6 {[%clk 0:03:01]} 6. Bd3 {[%clk 0:02:56.4]} 6... Ne7 {[%clk 0:03:00.5]}
7. Qe2 {[%clk 0:02:55.7]} 7... O-O {[%clk 0:03:00.7]} 8. Be3 {[%clk 0:02:54.7]}
8... Nbc6 {[%clk 0:03:01.2]} 9. Nc3 {[%clk 0:02:52.9]} 9... f5 {[%clk
0:03:01.2]} 10. exf5 {[%clk 0:02:48.4]} 10... Nxf5 {[%clk 0:03:00.6]} 11. Bxf5
{[%clk 0:02:42.5]} 11... Rxf5 {[%clk 0:03:00.1]} 12. O-O-O {[%clk 0:02:42.2]}
12... d5 {[%clk 0:03:00.1]} 13. Rhe1 {[%clk 0:02:38.5]} 13... Bd7 {[%clk
0:02:59.2]} 14. g4 {[%clk 0:02:20.7]} 14... Rf7 {[%clk 0:02:58.3]} 15. g5 {[%clk
0:02:05.4]} 15... Rc8 {[%clk 0:02:55.5]} 16. Kb1 {[%clk 0:02:00.3]} 16... Na5
{[%clk 0:02:47.7]} 17. Bxb6 {[%clk 0:01:50.7]} 17... Qxb6 {[%clk 0:02:47.5]} 18.
Nxa5 {[%clk 0:01:48.7]} 18... Qxa5 {[%clk 0:02:44.4]} 19. Rd3 {[%clk 0:01:42.2]}
19... Qb6 {[%clk 0:02:43.2]} 20. Rf3 {[%clk 0:01:28.5]} 20... Rcf8 {[%clk
0:02:42.9]} 21. Rxf7 {[%clk 0:01:20.2]} 21... Rxf7 {[%clk 0:02:42.9]} 22. Rf1
{[%clk 0:01:14.6]} 22... Qd4 {[%clk 0:02:42.7]} 23. a3 {[%clk 0:01:10.6]} 23...
Qf4 {[%clk 0:02:42.2]} 24. Qh5 {[%clk 0:01:00.9]} 24... g6 {[%clk 0:02:40.8]}
25. Qh6 {[%clk 0:00:53.3]} 25... Qd2 {[%clk 0:02:30.8]} 26. f3 {[%clk
0:00:47.6]} 26... Bc6 {[%clk 0:02:17.9]} 27. Qh4 {[%clk 0:00:43.2]} 27... Qf4
{[%clk 0:02:09.1]} 28. Qh3 {[%clk 0:00:42.8]} 28... Qf5 {[%clk 0:02:07.1]} 29.
Qg3 {[%clk 0:00:41.1]} 29... d4 {[%clk 0:02:05.4]} 30. Ne2 {[%clk 0:00:31.2]}
30... d3 {[%clk 0:02:05.1]} 31. Nd4 {[%clk 0:00:26.4]} 31... dxc2+ {[%clk
0:02:05]} 32. Kc1 {[%clk 0:00:26.6]} 32... Qd5 {[%clk 0:01:58.2]} 33. Nxc6
{[%clk 0:00:19.1]} 33... bxc6 {[%clk 0:01:58.1]} 34. f4 {[%clk 0:00:14.9]} 34...
Rd7 {[%clk 0:01:37.9]} 35. Kxc2 {[%clk 0:00:15.2]} 35... Qc4+ {[%clk 0:01:36.1]}
36. Qc3 {[%clk 0:00:11.6]} 36... Qxf1 {[%clk 0:01:34.7]} 37. f5 {[%clk
0:00:04.7]} 37... Qd1# {[%clk 0:01:32.9]} 0-1

[Event "Late-Titled-Tuesday-Blitz-March-19-2024"]
[Site "Chess.com"]
[Date "2024.03.19"]
[Round "3"]
[White "DeArron_Fox"]
[Black "Zeitnot593"]
[Result "1-0"]
[WhiteElo "2514"]
[BlackElo "2269"]
[TimeControl "180+1"]
[EndTime "14:27:04 PDT"]
[Termination "DeArron_Fox won by checkmate"]

1. d4 {[%clk 0:02:56.6]} 1... d5 {[%clk 0:02:59.5]} 2. c4 {[%clk 0:02:57.1]}
2... e6 {[%clk 0:02:59.2]} 3. Nc3 {[%clk 0:02:57.5]} 3... h6 {[%clk 0:02:59.7]}
4. Nf3 {[%clk 0:02:25.1]} 4... Nf6 {[%clk 0:02:57.6]} 5. Bf4 {[%clk 0:02:12.5]}
5... Bd6 {[%clk 0:02:57.4]} 6. Bxd6 {[%clk 0:02:09.5]} 6... Qxd6 {[%clk
0:02:58.3]} 7. e3 {[%clk 0:02:10.1]} 7... a6 {[%clk 0:02:57.9]} 8. Qc2 {[%clk
0:02:07.7]} 8... O-O {[%clk 0:02:54.9]} 9. cxd5 {[%clk 0:02:03.6]} 9... exd5
{[%clk 0:02:54.6]} 10. Bd3 {[%clk 0:02:03.6]} 10... c6 {[%clk 0:02:55]} 11. O-O
{[%clk 0:02:02.8]} 11... Re8 {[%clk 0:02:54.7]} 12. Rae1 {[%clk 0:01:52.7]}
12... Nbd7 {[%clk 0:02:53.4]} 13. Nd2 {[%clk 0:01:50.6]} 13... b5 {[%clk
0:02:42.2]} 14. f3 {[%clk 0:01:39.4]} 14... Bb7 {[%clk 0:02:35.4]} 15. Nb3
{[%clk 0:01:28.9]} 15... c5 {[%clk 0:02:23.9]} 16. dxc5 {[%clk 0:01:20.3]} 16...
Nxc5 {[%clk 0:02:24.8]} 17. Nxb5 {[%clk 0:01:13.1]} 17... axb5 {[%clk
0:02:23.2]} 18. Qxc5 {[%clk 0:01:12.2]} 18... Qxc5 {[%clk 0:02:01.9]} 19. Nxc5
{[%clk 0:01:13.1]} 19... Bc6 {[%clk 0:02:02.4]} 20. a3 {[%clk 0:01:08.1]} 20...
Reb8 {[%clk 0:01:55.2]} 21. Rc1 {[%clk 0:00:28.9]} 21... Be8 {[%clk 0:01:39.3]}
22. e4 {[%clk 0:00:10.7]} 22... dxe4 {[%clk 0:01:32.7]} 23. Nxe4 {[%clk
0:00:11.6]} 23... Nd5 {[%clk 0:01:26.9]} 24. Nd6 {[%clk 0:00:07.2]} 24... Bd7
{[%clk 0:01:23.9]} 25. Be4 {[%clk 0:00:06]} 25... Be6 {[%clk 0:01:22.4]} 26.
Rfd1 {[%clk 0:00:06.4]} 26... Ne3 {[%clk 0:01:16.8]} 27. Rd3 {[%clk 0:00:03.1]}
27... Ra6 {[%clk 0:01:10.2]} 28. Nxb5 {[%clk 0:00:03.3]} 28... Nxg2 {[%clk
0:01:08.3]} 29. Kxg2 {[%clk 0:00:02.4]} 29... Rxb5 {[%clk 0:01:07.6]} 30. Rd8#
{[%clk 0:00:02.6]} 1-0